lending/lending_fUSD_20250621
["ID","MTS","AMOUNT","RATE_DAILY","PERIOD"]
[366830994,1750489838389,-1002.6488546,0.00011899,2]
[366830995,1750489838398,-159.80585808,0.00011899,2]
[366830996,1750489838408,-577.98134966,0.00011899,2]
[366830997,1750489838418,-167.14517752,0.00011899,2]
[366830998,1750489838427,-393.03345071,0.00011899,2]
[366830999,1750489838437,-500.0,0.00011899,2]
[366831000,1750489838447,-500.0,0.00011899,2]
[366831001,1750489838456,-500.0,0.00011899,2]
[366831002,1750489838465,-500.0,0.00011899,2]
[366831003,1750489838475,-500.0,0.00011899,2]
[366831004,1750489838484,-500.0,0.00011899,2]
[366831005,1750489838494,-500.0,0.00011899,2]
[366831006,1750489838503,-500.0,0.00011899,2]
[366831007,1750489838513,-500.0,0.00011899,2]
[366831008,1750489838522,-219.68688225,0.00011899,2]
[366831009,1750489838532,-500.0,0.00011899,2]
[366831010,1750489838541,-313.4080179,0.00011899,2]
[366831011,1750489838550,-1455.81178388,0.000119,2]
[366831012,1750489838701,-341.82,0.000119,2]
[366831013,1750489838712,-135770.11754104,0.000119,2]
[366831014,1750489838721,-5590.36018409,0.000119,2]
[366831015,1750489838731,-1677.07996309,0.000119,2]
[366831016,1750489838741,-13670.22758611,0.000119,2]
[366831017,1750489838751,-800.0,0.000119,4]
[366831018,1750489838761,-347.55219134,0.000119,2]
[366831019,1750489838771,-500.0,0.000119,4]
[366831020,1750489838780,-2025.56547939,0.000119,2]
[366831021,1750489838789,-644.03243176,0.000119,2]
[366831022,1750489838799,-1649.24833482,0.000119,2]
[366831023,1750489838809,-2500.0,0.00011902,2]
[366831024,1750489838820,-568.97,0.0001195,2]
[366831025,1750489838829,-6284.0,0.00011973,2]
[366831026,1750489838839,-775.0,0.00011973,2]
[366831027,1750489838848,-266.0,0.00011973,2]
[366831028,1750489838857,-596.7091812,0.00011973,2]
[366831029,1750489838867,-500.0,0.00011973,2]
[366831030,1750489838876,-500.0,0.00011973,2]
[366831031,1750489838885,-500.0,0.00011973,2]
[366831032,1750489838895,-502.37593157,0.00011973,2]
[366831033,1750489838904,-500.0,0.00011973,2]
[366831034,1750489838913,-500.0,0.00011973,2]
[366831035,1750489838923,-502.44642255,0.00011973,2]
[366831036,1750489838932,-554.9060304,0.00011973,2]
[366831037,1750489838942,-500.0,0.00011973,2]
[366831038,1750489838951,-500.0,0.00011973,2]
[366831039,1750489838961,-500.0,0.00011973,2]
[366831040,1750489838970,-500.82335922,0.00011973,2]
[366831041,1750489838979,-446.04353842,0.00011973,2]
[366831042,1750489838989,-500.0,0.00011973,2]
[366831043,1750489838998,-500.0,0.00011973,2]
[366831044,1750489839008,-152.89761624,0.00011973,2]
[366831045,1750489839018,-586.19802182,0.00011973,2]
[366831046,1750489839027,-501.47603354,0.00011973,2]
[366831047,1750489839037,-500.0,0.00011973,2]
[366831048,1750489839046,-500.0,0.00011973,2]
[366831049,1750489839055,-204.14684456,0.0001199,2]
[366831050,1750489839065,-204.14684456,0.0001199,2]
[366831051,1750489839075,-9254.65531746,0.00011999,2]
[366831052,1750489839085,-239785.12263811,0.00012,2]
[366831053,1750489839095,-10487640.27093725,0.00012,2]
[366831054,1750489839108,-2263.97258098,0.00012,2]
[366831056,1750489839727,-3514.79,0.00012,2]
[366831057,1750489839757,-3099.64131068,0.00012,2]
[366831058,1750489839769,-32478.52533691,0.00012,2]
[366831059,1750489839781,-35776.03112766,0.00012,2]
[366831060,1750489839873,-8654.71182324,0.00012,2]
[366831061,1750489839884,-5010.87633403,0.00012,2]
[366831062,1750489839895,-5209.44140392,0.00012,2]
[366831063,1750489839906,-2365.24901534,0.00012,2]
[366831064,1750489839917,-6019.79742037,0.00012,2]
[366831065,1750489840160,-0.01932624,0.00011888,2]
[366831066,1750489840172,-302.0,0.00011888,2]
[366831067,1750489840185,-44.86258069,0.00011888,2]
[366831068,1750489840196,-613.78781246,0.00012,2]
[366831069,1750489840212,-5173.52865827,0.00012,2]
[366831070,1750489840252,-336.495,0.00012,2]
[366831071,1750489840264,-13631.93823963,0.00012,2]
[366831072,1750489840279,-3850.0,0.00012,2]
[366831073,1750489840290,-380.81282777,0.00012,2]
[366831077,1750489842675,-1773.0,0.00012,2]
[366831078,1750489842687,-14652.61415984,0.00012,2]
[366831081,1750489843225,-933.975,0.00012,2]
[366831082,1750489843247,-672.54591315,0.00012,2]
[366831083,1750489844726,-20846.0,0.00012,2]
[366831086,1750489845825,-346.88190693,0.00011892,2]
[366831087,1750489845835,-82209.05826692,0.00012,2]
[366831088,1750489845847,-76642.09377778,0.00012,2]
[366831089,1750489845859,-19959.98011092,0.00012,2]
[366831090,1750489845933,-1468.93337338,0.00012,2]
[366831091,1750489845971,-2348634.83065759,0.00012,2]
[366831099,1750489990646,511.08203,0.000247,120]
[366831100,1750490057798,-803.55233943,0.00011525,2]
[366831101,1750490057827,-300.0,0.00011898,2]
[366831102,1750490057855,-250.0,0.00011898,2]
[366831103,1750490057884,-300.0,0.00011899,2]
[366831104,1750490057913,-300.0,0.00011899,2]
[366831105,1750490058125,-18538.92412866,0.000119,2]
[366831106,1750490058142,-20731.570529,0.000119,2]
[366831107,1750490058152,-4268.429471,0.000119,2]
[366831108,1750490058174,-21209.85259581,0.000119,2]
[366831109,1750490058183,-284.71691413,0.000119,2]
[366831110,1750490058193,-151.20632193,0.000119,2]
[366831111,1750490058203,-261.8967346,0.000119,2]
[366831112,1750490058212,-250.0,0.00011954,2]
[366831113,1750490058222,-500.0,0.00011973,2]
[366831114,1750490058232,-500.0,0.00011973,2]
[366831115,1750490058242,-500.0,0.00011973,2]
[366831116,1750490058252,-500.0,0.00011973,2]
[366831117,1750490058262,-500.0,0.00011973,2]
[366831118,1750490058272,-342.32743353,0.00011973,2]
[366831119,1750490058311,-157.67256647,0.00011973,2]
[366831120,1750490058343,-500.0,0.00011973,2]
[366831121,1750490058372,-500.0,0.00011973,2]
[366831122,1750490058403,-500.0,0.00011973,2]
[366831123,1750490058433,-500.0,0.00011973,2]
[366831124,1750490058464,-300.0,0.00011999,2]
[366831125,1750490058496,-1041.20232883,0.00011999,3]
[366831126,1750490058526,-500.0,0.00011999,2]
[366831127,1750490058557,-500.0,0.00011999,2]
[366831128,1750490058587,-168.5332839,0.00011999,2]
[366831129,1750490058618,-360.2787615,0.00011999,2]
[366831130,1750490058647,-500.0,0.00011999,2]
[366831131,1750490058676,-500.0,0.00011999,2]
[366831132,1750490058708,-500.0,0.00011999,2]
[366831133,1750490058737,-500.0,0.00011999,2]
[366831134,1750490058765,-291.44170679,0.00011999,2]
[366831135,1750490058794,-312.60089088,0.00011999,2]
[366831136,1750490058824,-302.18743136,0.00011999,2]
[366831137,1750490059321,-9132.16606054,0.00012,2]
[366831138,1750490059343,-25000.0,0.00012,2]
[366831139,1750490059376,-25000.0,0.00012,2]
[366831140,1750490059423,-25000.0,0.00012,2]
[366831141,1750490059444,-25000.0,0.00012,2]
[366831142,1750490059567,-25000.0,0.00012,2]
[366831143,1750490059607,-25000.0,0.00012,2]
[366831144,1750490059642,-25000.0,0.00012,2]
[366831145,1750490059663,-25000.0,0.00012,2]
[366831146,1750490059704,-25000.0,0.00012,2]
[366831147,1750490059774,-25000.0,0.00012,2]
[366831148,1750490059810,-25000.0,0.00012,2]
[366831149,1750490059835,-25000.0,0.00012,2]
[366831150,1750490059861,-25000.0,0.00012,2]
[366831151,1750490059897,-25000.0,0.00012,2]
[366831152,1750490060012,-25000.0,0.00012,2]
[366831153,1750490060405,-25000.0,0.00012,2]
[366831154,1750490060419,-25000.0,0.00012,2]
[366831155,1750490060452,-25000.0,0.00012,2]
[366831156,1750490060585,-25000.0,0.00012,2]
[366831157,1750490060715,-25000.0,0.00012,2]
[366831158,1750490060831,-25000.0,0.00012,2]
[366831159,1750490060946,-25000.0,0.00012,2]
[366831160,1750490061076,-25000.0,0.00012,2]
[366831161,1750490061210,-25000.0,0.00012,2]
[366831162,1750490061453,-25000.0,0.00012,2]
[366831163,1750490061495,-25000.0,0.00012,2]
[366831164,1750490061618,-25000.0,0.00012,2]
[366831165,1750490061727,-25000.0,0.00012,2]
[366831166,1750490061839,-25000.0,0.00012,2]
[366831167,1750490061990,-25000.0,0.00012,2]
[366831168,1750490062106,-25000.0,0.00012,2]
[366831169,1750490062462,-25000.0,0.00012,2]
[366831170,1750490062636,-25000.0,0.00012,2]
[366831171,1750490062763,-25000.0,0.00012,2]
[366831172,1750490062890,-25000.0,0.00012,2]
[366831173,1750490063232,-25000.0,0.00012,2]
[366831174,1750490063347,-25000.0,0.00012,2]
[366831175,1750490063508,-25000.0,0.00012,2]
[366831176,1750490063652,-25000.0,0.00012,2]
[366831177,1750490063833,-25000.0,0.00012,2]
[366831178,1750490063977,-25000.0,0.00012,2]
[366831179,1750490064117,-25000.0,0.00012,2]
[366831180,1750490064286,-25000.0,0.00012,2]
[366831181,1750490064477,-25000.0,0.00012,2]
[366831182,1750490064577,-25000.0,0.00012,2]
[366831183,1750490064764,-25000.0,0.00012,2]
[366831184,1750490064868,-25000.0,0.00012,2]
[366831185,1750490065069,-25000.0,0.00012,2]
[366831186,1750490065172,-25000.0,0.00012,2]
[366831187,1750490065318,-25000.0,0.00012,2]
[366831188,1750490065462,-25000.0,0.00012,2]
[366831189,1750490065761,-25000.0,0.00012,2]
[366831190,1750490065902,-25000.0,0.00012,2]
[366831191,1750490066045,-25000.0,0.00012,2]
[366831192,1750490066236,-25000.0,0.00012,2]
[366831193,1750490066303,-25000.0,0.00012,2]
[366831194,1750490066451,-25000.0,0.00012,2]
[366831195,1750490066594,-25000.0,0.00012,2]
[366831196,1750490066893,-25000.0,0.00012,2]
[366831197,1750490066928,-25000.0,0.00012,2]
[366831198,1750490067073,-25000.0,0.00012,2]
[366831199,1750490067203,-25000.0,0.00012,2]
[366831200,1750490067345,-25000.0,0.00012,2]
[366831201,1750490067670,-25000.0,0.00012,2]
[366831202,1750490068866,-25000.0,0.00012,2]
[366831203,1750490068880,-25000.0,0.00012,2]
[366831204,1750490068908,-25000.0,0.00012,2]
[366831205,1750490068931,-25000.0,0.00012,2]
[366831206,1750490068944,-25000.0,0.00012,2]
[366831207,1750490068966,-25000.0,0.00012,2]
[366831208,1750490069011,-25000.0,0.00012,2]
[366831209,1750490069024,-25000.0,0.00012,2]
[366831210,1750490069056,-25000.0,0.00012,2]
[366831211,1750490069139,-25000.0,0.00012,2]
[366831212,1750490069272,-25000.0,0.00012,2]
[366831213,1750490069428,-25000.0,0.00012,2]
[366831214,1750490122030,-1200.0,0.00011999,2]
[366831215,1750490122070,-22600.0,0.00012,2]
[366831216,1750490122157,-25000.0,0.00012,2]
[366831217,1750490122351,-25000.0,0.00012,2]
[366831218,1750490122495,-25000.0,0.00012,2]
[366831219,1750490122625,-25000.0,0.00012,2]
[366831220,1750490122767,-25000.0,0.00012,2]
[366831221,1750490122904,-25000.0,0.00012,2]
[366831222,1750490123035,-25000.0,0.00012,2]
[366831223,1750490123192,-25000.0,0.00012,2]
[366831224,1750490123322,-25000.0,0.00012,2]
[366831225,1750490123472,-25000.0,0.00012,2]
[366831226,1750490123606,-25000.0,0.00012,2]
[366831227,1750490123738,-25000.0,0.00012,2]
[366831228,1750490123937,-25000.0,0.00012,2]
[366831229,1750490124074,-25000.0,0.00012,2]
[366831230,1750490124208,-25000.0,0.00012,2]
[366831231,1750490124339,-25000.0,0.00012,2]
[366831232,1750490124475,-25000.0,0.00012,2]
[366831233,1750490124612,-25000.0,0.00012,2]
[366831234,1750490124758,-25000.0,0.00012,2]
[366831235,1750490124884,-25000.0,0.00012,2]
[366831236,1750490125014,-25000.0,0.00012,2]
[366831237,1750490125237,-25000.0,0.00012,2]
[366831238,1750490130422,-25000.0,0.00012,2]
[366831239,1750490130567,-25000.0,0.00012,2]
[366831240,1750490130732,-25000.0,0.00012,2]
[366831241,1750490130883,-25000.0,0.00012,2]
[366831242,1750490131056,-25000.0,0.00012,2]
[366831243,1750490131203,-25000.0,0.00012,2]
[366831244,1750490131346,-25000.0,0.00012,2]
[366831245,1750490132280,-25000.0,0.00012,2]
[366831246,1750490132317,-25000.0,0.00012,2]
[366831247,1750490132353,-25000.0,0.00012,2]
[366831248,1750490132379,-25000.0,0.00012,2]
[366831249,1750490132424,-25000.0,0.00012,2]
[366831250,1750490132457,-25000.0,0.00012,2]
[366831251,1750490140401,-3421.488,0.0001176,2]
[366831252,1750490140431,-189.192,0.0001176,2]
[366831253,1750490140488,-17778.64,0.00012,2]
[366831254,1750490143217,-25000.0,0.00012,2]
[366831255,1750490143339,-25000.0,0.00012,2]
[366831256,1750490144148,-128653.67447449,0.00012,2]
[366831257,1750490148592,-25000.0,0.00012,2]
[366831258,1750490148757,-25000.0,0.00012,2]
[366831259,1750490148871,-25000.0,0.00012,2]
[366831260,1750490149043,-25000.0,0.00012,2]
[366831261,1750490149180,-25000.0,0.00012,2]
[366831262,1750490154417,-189.81127608,0.000119,2]
[366831263,1750490154454,-24620.37744784,0.00012,2]
[366831264,1750490154628,-25000.0,0.00012,2]
[366831265,1750490154790,-25000.0,0.00012,2]
[366831266,1750490154905,-25000.0,0.00012,2]
[366831267,1750490155035,-25000.0,0.00012,2]
[366831268,1750490155160,-25000.0,0.00012,2]
[366831269,1750490155329,-25000.0,0.00012,2]
[366831270,1750490155456,-25000.0,0.00012,2]
[366831271,1750490155587,-25000.0,0.00012,2]
[366831272,1750490155759,-25000.0,0.00012,2]
[366831273,1750490155860,-25000.0,0.00012,2]
[366831274,1750490155999,-25000.0,0.00012,2]
[366831275,1750490156128,-25000.0,0.00012,2]
[366831276,1750490156258,-300.0,0.00011999,2]
[366831277,1750490156296,-24400.0,0.00012,2]
[366831278,1750490156379,-25000.0,0.00012,2]
[366831279,1750490156624,-25000.0,0.00012,2]
[366831280,1750490156752,-25000.0,0.00012,2]
[366831281,1750490156868,-25000.0,0.00012,2]
[366831282,1750490156988,-25000.0,0.00012,2]
[366831283,1750490157108,-25000.0,0.00012,2]
[366831284,1750490157242,-25000.0,0.00012,2]
[366831285,1750490157440,-25000.0,0.00012,2]
[366831286,1750490157567,-25000.0,0.00012,2]
[366831287,1750490162818,-300.0,0.00011999,2]
[366831288,1750490162856,-24400.0,0.00012,2]
[366831289,1750490162941,-25000.0,0.00012,2]
[366831290,1750490163095,-25000.0,0.00012,2]
[366831291,1750490163236,-25000.0,0.00012,2]
[366831292,1750490164730,-25000.0,0.00012,2]
[366831293,1750490164768,-25000.0,0.00012,2]
[366831294,1750490164833,-25000.0,0.00012,2]
[366831295,1750490164857,-25000.0,0.00012,2]
[366831296,1750490164902,-25000.0,0.00012,2]
[366831297,1750490165101,-25000.0,0.00012,2]
[366831298,1750490165215,-25000.0,0.00012,2]
[366831299,1750490165240,-25000.0,0.00012,2]
[366831300,1750490165431,-25000.0,0.00012,2]
[366831301,1750490253250,150.0,9e-05,5]
[366831303,1750490427701,-729.95456021,0.00011044,2]
[366831304,1750490427730,-161.56460013,0.00011122,2]
[366831305,1750490427759,-2500.0,0.00011144,2]
[366831306,1750490427790,-1200.0,0.00011164,2]
[366831307,1750490427818,-316.96167932,0.00011222,2]
[366831308,1750490427956,-183.03832068,0.00011222,2]
[366831309,1750490427997,-10000.0,0.00011222,2]
[366831310,1750490428106,-10000.0,0.00011222,2]
[366831311,1750490428276,-3900.0,0.00011222,2]
[366831312,1750490428309,-845.9,0.00011366,2]
[366831313,1750490428340,-8.2,0.000115,4]
[366831314,1750490428441,-491.8,0.000115,4]
[366831315,1750490428475,-2500.0,0.0001155,2]
[366831316,1750490428506,-1100.0,0.000116,4]
[366831317,1750490428535,-300.0,0.00011668,2]
[366831318,1750490428614,-2200.0,0.00011668,2]
[366831319,1750490428644,-1600.0,0.000117,4]
[366831320,1750490428672,-199.50652331,0.000118,2]
[366831321,1750490428767,-2200.0,0.000118,4]
[366831322,1750490428796,-199.50652331,0.0001185,2]
[366831323,1750490428910,-1801.48043007,0.00011873,2]
[366831324,1750490428961,-4031.14950941,0.00011873,2]
[366831325,1750490429032,-1937.70098118,0.00011873,2]
[366831326,1750490429042,-624.24723333,0.00011873,2]
[366831327,1750490429052,-1007.39575277,0.000119,2]
[366831328,1750490429099,-4768.18716063,0.000119,2]
[366831329,1750490429128,-199.50652331,0.000119,2]
[366831330,1750490429182,-1001.15680665,0.000119,4]
[366831331,1750490429225,-1798.84319335,0.000119,4]
[366831332,1750490429256,-173.77609567,0.000119,2]
[366831333,1750490429285,-489.04351627,0.000119,2]
[366831334,1750490429315,-162.01885447,0.000119,2]
[366831335,1750490429343,-411.25776485,0.000119,2]
[366831336,1750490429426,-1733.24773602,0.00011973,2]
[366831337,1750490429459,-199.50652331,0.00011973,2]
[366831338,1750490429483,-64.61263212,0.00011973,2]
[366831339,1750490429505,-1798.84319335,0.00011973,2]
[366831340,1750490429540,-173.77609567,0.00011973,2]
[366831341,1750490429554,-489.04351627,0.00011973,2]
[366831342,1750490429576,-162.01885447,0.00011973,2]
[366831343,1750490429594,-411.25776485,0.00011973,2]
[366831344,1750490429616,-3930.12115078,0.00011973,2]
[366831345,1750490429659,-10000.0,0.00011973,2]
[366831346,1750490429700,-10000.0,0.00011973,2]
[366831347,1750490429743,-10000.0,0.00011973,2]
[366831348,1750490429771,-10000.0,0.00011973,2]
[366831349,1750490429797,-10000.0,0.00011973,2]
[366831350,1750490434846,-10000.0,0.00011973,2]
[366831351,1750490434989,-10000.0,0.00011973,2]
[366831352,1750490435121,-10000.0,0.00011973,2]
[366831353,1750490435282,-10000.0,0.00011973,2]
[366831354,1750490435415,-10000.0,0.00011973,2]
[366831355,1750490435555,-10000.0,0.00011973,2]
[366831356,1750490435725,-10000.0,0.00011973,2]
[366831357,1750490435906,-10000.0,0.00011973,2]
[366831358,1750490436079,-3555.57253316,0.00011973,2]
[366831359,1750490436110,-500.0,0.00011973,2]
[366831360,1750490436140,-500.0,0.00011973,2]
[366831361,1750490436170,-385.86850118,0.00011973,2]
[366831362,1750490436257,-117.11793132,0.00011973,2]
[366831363,1750490436293,-500.0,0.00011973,2]
[366831364,1750490436324,-500.0,0.00011973,2]
[366831365,1750490436355,-502.06961513,0.00011973,2]
[366831366,1750490436386,-500.0,0.00011973,2]
[366831367,1750490436698,-500.0,0.00011973,2]
[366831368,1750490436729,-581.79742209,0.00011973,2]
[366831369,1750490436759,-500.0,0.00011973,2]
[366831370,1750490436787,-500.0,0.00011973,2]
[366831371,1750490436872,-2042.30149278,0.0001199,2]
[366831372,1750490436907,-2042.30149278,0.0001199,2]
[366831373,1750490436939,-666.51696848,0.00011999,3]
[366831374,1750490437062,-497.76009192,0.00011999,3]
[366831375,1750490437091,-1164.2770604,0.00011999,3]
[366831376,1750490437121,-1164.27706041,0.00011999,3]
[366831377,1750490437545,-1.47189668,0.00011905,2]
[366831378,1750490437563,-1164.2770604,0.00011905,2]
[366831379,1750490437577,-1164.27706041,0.00011905,2]
[366831380,1750490437614,-3990.28398251,0.00011905,2]
[366831381,1750490437646,-357.08759203,0.00012,2]
[366831382,1750490437661,-10000.0,0.00012,2]
[366831383,1750490437679,-10000.0,0.00012,2]
[366831384,1750490437733,-10000.0,0.00012,2]
[366831385,1750490437793,-10000.0,0.00012,2]
[366831386,1750490437834,-3990.28398251,0.00012,2]
[366831387,1750490437852,-2019.43203498,0.00012,2]
[366831388,1750490437904,-10000.0,0.00012,2]
[366831389,1750490437931,-10000.0,0.00012,2]
[366831390,1750490437964,-10000.0,0.00012,2]
[366831391,1750490437984,-10000.0,0.00012,2]
[366831392,1750490438095,-10000.0,0.00012,2]
[366831393,1750490438166,-10000.0,0.00012,2]
[366831394,1750490438184,-10000.0,0.00012,2]
[366831395,1750490438241,-10000.0,0.00012,2]
[366831396,1750490438381,-10000.0,0.00012,2]
[366831397,1750490438520,-10000.0,0.00012,2]
[366831398,1750490438653,-10000.0,0.00012,2]
[366831399,1750490438983,-10000.0,0.00012,2]
[366831400,1750490439108,-10000.0,0.00012,2]
[366831401,1750490439282,-10000.0,0.00012,2]
[366831402,1750490439426,-10000.0,0.00012,2]
[366831403,1750490439557,-10000.0,0.00012,2]
[366831404,1750490439686,-10000.0,0.00012,2]
[366831405,1750490439815,-10000.0,0.00012,2]
[366831406,1750490440040,-10000.0,0.00012,2]
[366831407,1750490440116,-10000.0,0.00012,2]
[366831408,1750490440269,-10000.0,0.00012,2]
[366831409,1750490440399,-10000.0,0.00012,2]
[366831410,1750490440548,-10000.0,0.00012,2]
[366831411,1750490440696,-10000.0,0.00012,2]
[366831412,1750490440826,-10000.0,0.00012,2]
[366831413,1750490440966,-10000.0,0.00012,2]
[366831414,1750490441104,-10000.0,0.00012,2]
[366831415,1750490441555,-10000.0,0.00012,2]
[366831416,1750490441658,-10000.0,0.00012,2]
[366831417,1750490441685,-10000.0,0.00012,2]
[366831418,1750490441841,-10000.0,0.00012,2]
[366831419,1750490441903,-10000.0,0.00012,2]
[366831420,1750490442000,-10000.0,0.00012,2]
[366831421,1750490442134,-10000.0,0.00012,2]
[366831422,1750490442277,-10000.0,0.00012,2]
[366831423,1750490443416,-10000.0,0.00011912,2]
[366831424,1750490443440,-443.868477,0.00011912,2]
[366831425,1750490443448,-9556.131523,0.00012,2]
[366831426,1750490443506,-10000.0,0.00012,2]
[366831427,1750490443544,-10000.0,0.00012,2]
[366831428,1750490443684,-10000.0,0.00012,2]
[366831429,1750490443742,-10000.0,0.00012,2]
[366831430,1750490443767,-5455.67,0.00011956,2]
[366831431,1750490443776,-4544.33,0.00012,2]
[366831432,1750490443817,-10000.0,0.00012,2]
[366831433,1750490443854,-10000.0,0.00012,2]
[366831434,1750490443922,-10000.0,0.00012,2]
[366831435,1750490444192,-10000.0,0.00012,2]
[366831436,1750490444262,-10000.0,0.00012,2]
[366831437,1750490444280,-10000.0,0.00012,2]
[366831438,1750490484047,-173.26,9.554e-05,2]
[366831439,1750490525951,-173.26,0.00010749,2]
[366831440,1750490525981,-2500.0,0.00011285,2]
[366831441,1750490526013,-300.0,0.00011285,2]
[366831442,1750490526097,-53.48,0.00011285,2]
[366831443,1750490526131,-196.52,0.00011285,2]
[366831445,1750490643059,300.0,0.000115,4]
[366831446,1750490671781,169.94402502,0.000115,2]
[366831447,1750490720115,5137.01597498,9e-05,2]
[366831448,1750490720141,5153.96951286,9e-05,2]
[366831449,1750490726129,754.15049677,0.000108,2]
[366831450,1750490734545,3903.96770434,0.0002465,120]
[366831451,1750490737192,91.87999037,9e-05,2]
[366831452,1750490737215,6000.0,9e-05,2]
[366831453,1750490737238,6000.0,9e-05,2]
[366831454,1750490737263,6000.0,9e-05,2]
[366831455,1750490737288,6000.0,9e-05,2]
[366831456,1750490737312,6000.0,9e-05,2]
[366831457,1750490737336,461.73949111,9e-05,2]
[366831458,1750490755863,5538.26050889,6.94e-05,2]
[366831459,1750490755887,6000.0,6.94e-05,2]
[366831460,1750490755912,1033.52152429,6.94e-05,2]
[366831519,1750490832055,600.0,0.000114,4]
[366831520,1750490833976,1200.0,0.000115,4]
[366831521,1750490848947,167.14,0.00011455,2]
[366831522,1750490857719,2999.33847571,0.00011122,2]
[366831523,1750490857743,3258.87152429,0.00011122,2]
[366831524,1750490896162,1614.13,0.00011068,2]
[366831525,1750490903689,250.0,0.00011068,2]
[366831534,1750491012361,201.0,0.0001139,2]
[366831547,1750491032504,-1800.0,0.000116,4]
[366831548,1750491032513,-2500.0,0.00011614,2]
[366831549,1750491032523,-250.0,0.00011614,2]
[366831550,1750491032534,-2500.0,0.00011642,2]
[366831551,1750491032544,-2400.0,0.000117,4]
[366831552,1750491032554,-869.19441805,0.00011726,2]
[366831553,1750491032565,-300.0,0.00011799,2]
[366831554,1750491032574,-1200.0,0.00011799,2]
[366831555,1750491032584,-3000.0,0.000118,4]
[366831556,1750491032594,-300.0,0.00011824,2]
[366831557,1750491032603,-3241.359,0.0001188,2]
[366831558,1750491032613,-189.192,0.0001188,2]
[366831559,1750491032623,-515.03102307,0.000119,2]
[366831560,1750491032632,-697.65029929,0.000119,2]
[366831562,1750491032642,-600.0,0.000119,4]
[366831564,1750491032651,-43462.94887571,0.000119,2]
[366831569,1750491032662,-26470.02940978,0.000119,2]
[366831572,1750491032671,-151.20632187,0.000119,2]
[366831575,1750491032681,-173.77609567,0.000119,2]
[366831578,1750491032690,-10807.68208044,0.000119,2]
[366831580,1750491032701,-1668.69,0.000119,2]
[366831582,1750491032716,-2400.0,0.000119,2]
[366831587,1750491032757,-561.4416742,0.000119,2]
[366831589,1750491032768,-1705.4020915,0.000119,2]
[366831590,1750491032790,-1800.0,0.000119,2]
[366831591,1750491032802,-1371.27957814,0.000119,2]
[366831592,1750491032868,-8003.65534298,0.000119,2]
[366831593,1750491032879,-300.0,0.000119,2]
[366831594,1750491032891,-4811.43538687,0.000119,2]
[366831595,1750491032903,-2791.96342983,0.000119,2]
[366831596,1750491037882,-9187.3529721,0.000119,2]
[366831597,1750491037894,-29459.18306096,0.000119,2]
[366831598,1750491037906,-9638.67149711,0.000119,2]
[366831599,1750491037981,-784.7751548,0.000119,2]
[366831600,1750491037992,-19321.75627772,0.000119,2]
[366831601,1750491038150,-62878.61593979,0.000119,2]
[366831602,1750491038159,-274.17184324,0.000119,2]
[366831603,1750491038169,-1770.79,0.00011905,2]
[366831604,1750491038178,-163.92,0.00011911,2]
[366831605,1750491038187,-173.26,0.00011943,2]
[366831606,1750491038197,-500.0,0.00011973,2]
[366831607,1750491038207,-502.78552629,0.00011973,2]